[Event "AUT-ch 2018"]
[Site "Vienna"]
[Date "2018.07.24"]
[Round "4"]
[White "Jakits, Leopold"]
[Black "Sandhoefner, Florian"]
[Result "0-1"]
[ECO "A20"]
[WhiteElo "2161"]
[BlackElo "2327"]
[Annotator "NA"]
[PlyCount "90"]
[EventDate "2018.07.22"]
[EventType "swiss"]
[EventCountry "AUT"]
[SourceTitle "playchess.com"]
[Source "ChessBase"]
[SourceQuality "1"]
[TimeControl "40/5400+30:1800+30"]

1. c4 {[%emt 0:00:00]} e5 {[%emt 0:00:01]} 2. g3 {[%emt 0:00:00]} Nf6 {[%emt 0:00:05]} 3. Bg2 {[%emt 0:00:00]} d5 {[%emt 0:00:03]} 4. cxd5 {[%emt 0:00:00]} Nxd5 {[%emt 0:00:03]} 5. Nc3 {[%emt 0:00:06]} Ne7 {[%emt 0:00:06]} 6. Nf3 {[%emt 0:03:39]} Nbc6 {[%emt 0:00:06]} 7. O-O {[%emt 0:03:03]} g6 {[%emt 0:00:49]} 8. Rb1 {[%emt 0:01:50]} Bg7 {[%emt 0:00:36]} 9. b4 {[%emt 0:03:07]} O-O {[%emt 0:01:12]} 10. d3 {[%emt 0:01:43]} h6 {[%emt 0:01:49]} 11. Bd2 {[%emt 0:01:41]} Be6 {[%emt 0:04:04]} 12. Qa4 f5 {[%emt 0:07:06]} 13. Rfd1 {[%emt 0:30:58]} a6 {[%emt 0:02:11]} 14. Qc2 {[%emt 0:13:37]} Nd4 {[%emt 0:10:03]} 15. Nxd4 {[%emt 0:01:56]} exd4 {[%emt 0:01:16]} 16. Na4 {[%emt 0:00:05]} Bd5 {[%emt 0:01:56]} 17. Bxd5+ {[%emt 0:09:35]} Nxd5 {[%emt 0:00:14]} 18. Nc5 {[%emt 0:00:11]} Qc8 {[%emt 0:00:34]} 19. b5 {[%emt 0:01:09]} axb5 {[%emt 0:02:53]} 20. Rxb5 {[%emt 0:00:34]} b6 {[%emt 0:01:19]} 21. Qc4 {[%emt 0:06:36]} Rd8 {[%emt 0:05:26]} 22. Nb3 {[%emt 0:05:11]} Qe6 {[%emt 0:01:57]} 23. Nxd4 {[%emt 0:01:16]} Bxd4 {[%emt 0:00:33]} 24. Qxd4 {[%emt 0:00:37]} c5 {[%emt 0:04:49]} 25. Qa1 {[%emt 0:04:44]} Qxe2 {[%emt 0:01:19]} 26. Bxh6 {[%emt 0:00:19]} Rd7 {[%emt 0:00:46]} 27. a4 {[%emt 0:05:25]} Kh7 {[%emt 0:04:37]} 28. Bg5 {[%emt 0:01:35]} Rda7 {[%emt 0:05:43]} 29. Rb2 {[%emt 0:04:56]} Qg4 {[%emt 0:02:10]} 30. Qc1 {[%emt 0:00:07]} Rxa4 {[%emt 0:01:29]} 31. Rf1 {[%emt 0:00:55]} f4 {[%emt 0:02:34]} 32. h4 {[%emt 0:00:32]} Qh3 {[%emt 0:02:46]} 33. gxf4 {[%emt 0:00:31]} Qg4+ {[%emt 0:00:43]} 34. Kh2 {[%emt 0:00:31]} Nxf4 {[%emt 0:02:04]} 35. f3 {[%emt 0:00:25]} Qh3+ {[%emt 0:05:27]} 36. Kg1 {[%emt 0:00:02]} Qg3+ {[%emt 0:00:46]} 37. Kh1 {[%emt 0:00:02]} Ra1 {[%emt 0:02:20]} 38. Bxf4 {[%emt 0:01:24]} Qh3+ {[%emt 0:01:27]} 39. Rh2 {[%emt 0:00:26]} Qxf1+ {[%emt 0:00:55]} 40. Qxf1 {[%emt 0:00:04]} Rxf1+ {[%emt 0:30:02]} 41. Kg2 {[%emt 0:30:09]} Rfa1 {[%emt 0:00:29]} 42. Kg3 {[%emt 0:00:00]} R8a2 {[%emt 0:00:00]} 43. Rxa2 {[%emt 0:00:00]} Rxa2 {[%emt 0:00:00]} 44. Bc7 {[%emt 0:00:00]} b5 {[%emt 0:00:00]} 45. Kf4 {[%emt 0:00:00]} b4 {[%emt 0:00:00]} 0-1

[Event "AUT-ch 2018"]
[Site "Vienna"]
[Date "2018.07.24"]
[Round "4"]
[White "Ager, Josef"]
[Black "Mostbauer, Florian"]
[Result "1/2-1/2"]
[ECO "A06"]
[WhiteElo "2154"]
[BlackElo "2319"]
[Annotator "NA"]
[PlyCount "96"]
[EventDate "2018.07.22"]
[EventType "swiss"]
[EventCountry "AUT"]
[SourceTitle "playchess.com"]
[Source "ChessBase"]
[SourceQuality "1"]
[TimeControl "40/5400+30:1800+30"]

1. Nf3 {[%emt 0:00:00]} d5 {[%emt 0:00:07]} 2. g3 {[%emt 0:00:00]} c6 {[%emt 0:00:06]} 3. Bg2 {[%emt 0:00:00]} Bf5 {[%emt 0:00:09]} 4. c4 {[%emt 0:00:00]} e6 {[%emt 0:00:07]} 5. O-O {[%emt 0:00:42]} Nf6 {[%emt 0:00:23]} 6. d3 {[%emt 0:00:19]} Be7 {[%emt 0:08:08]} 7. b3 {[%emt 0:00:10]} h6 {[%emt 0:00:22]} 8. Ba3 {[%emt 0:00:28]} O-O {[%emt 0:00:41]} 9. Bxe7 {[%emt 0:00:05]} Qxe7 {[%emt 0:00:06]} 10. Nc3 {[%emt 0:00:33]} e5 {[%emt 0:04:53]} 11. cxd5 {[%emt 0:01:07]} cxd5 {[%emt 0:02:34]} 12. d4 {[%emt 0:00:30]} e4 {[%emt 0:00:59]} 13. Ne5 {[%emt 0:00:07]} Nbd7 {[%emt 0:00:31]} 14. Nxd7 {[%emt 0:00:57]} Qxd7 {[%emt 0:00:16]} 15. Qd2 {[%emt 0:00:16]} Rfe8 {[%emt 0:01:21]} 16. e3 {[%emt 0:00:45]} Bh3 {[%emt 0:07:32]} 17. Rfc1 {[%emt 0:02:18]} Rac8 {[%emt 0:01:56]} 18. Ne2 {[%emt 0:09:56]} Nh7 {[%emt 0:16:25]} 19. Bxh3 {[%emt 0:01:51]} Qxh3 {[%emt 0:00:08]} 20. Nf4 {[%emt 0:00:08]} Qf5 {[%emt 0:01:13]} 21. h4 {[%emt 0:06:31]} g5 {[%emt 0:01:50]} 22. Ng2 {[%emt 0:00:22]} Nf6 {[%emt 0:01:38]} 23. Kh2 {[%emt 0:08:33]} Kg7 {[%emt 0:06:32]} 24. Rh1 {[%emt 0:00:54]} Ng4+ {[%emt 0:01:52]} 25. Kg1 {[%emt 0:00:12]} Rc6 {[%emt 0:00:41]} 26. Rf1 {[%emt 0:04:39]} Rec8 {[%emt 0:04:01]} 27. Ne1 {[%emt 0:00:21]} Rc1 {[%emt 0:02:10]} 28. Kg2 {[%emt 0:02:58]} R8c3 {[%emt 0:04:12]} 29. hxg5 {[%emt 0:02:18]} hxg5 {[%emt 0:00:19]} 30. Rh5 {[%emt 0:03:16]} Rxe1 {[%emt 0:12:14]} 31. Rxe1 {[%emt 0:01:25]} Qf3+ {[%emt 0:08:34]} 32. Kg1 {[%emt 0:00:20]} Nxf2 {[%emt 0:07:52]} 33. Rh2 {[%emt 0:08:03]} Qxg3+ {[%emt 0:01:13]} 34. Rg2 {[%emt 0:00:08]} Nh3+ {[%emt 0:00:52]} 35. Kh1 {[%emt 0:00:16]} Qc7 {[%emt 0:01:45]} 36. Qe2 {[%emt 0:02:05]} Rc6 {[%emt 0:00:37]} 37. Rh2 {[%emt 0:04:54]} Rh6 {[%emt 0:00:24]} 38. Qg2 {[%emt 0:04:53]} Qc3 {[%emt 0:02:30]} 39. Qg3 {[%emt 0:01:47]} Qc8 {[%emt 0:01:18]} 40. Rf1 {[%emt 0:01:22]} Qe6 {[%emt 0:31:23]} 41. Kg2 {[%emt 0:33:38]} g4 {[%emt 0:00:00]} 42. Qe5+ {[%emt 0:00:00]} Qxe5 {[%emt 0:00:00]} 43. dxe5 {[%emt 0:00:00]} Rh5 {[%emt 0:00:00]} 44. Kg3 {[%emt 0:00:00]} Rxe5 {[%emt 0:00:00]} 45. Kxg4 {[%emt 0:00:00]} Ng5 {[%emt 0:00:00]} 46. Rf5 {[%emt 0:00:00]} Nf3 {[%emt 0:00:00]} 47. Rc2 {[%emt 0:00:00]} Kg6 {[%emt 0:00:00]} 48. Rxe5 {[%emt 0:00:00]} Nxe5+ {[%emt 0:00:00]} 1/2-1/2

[Event "AUT-ch 2018"]
[Site "Vienna"]
[Date "2018.07.24"]
[Round "4"]
[White "Trippold, Denise"]
[Black "Kummer, Helmut"]
[Result "0-1"]
[ECO "E18"]
[WhiteElo "2138"]
[BlackElo "2290"]
[Annotator "NA"]
[PlyCount "84"]
[EventDate "2018.07.22"]
[EventType "swiss"]
[EventCountry "AUT"]
[SourceTitle "playchess.com"]
[Source "ChessBase"]
[SourceQuality "1"]
[TimeControl "40/5400+30:1800+30"]

1. d4 {[%emt 0:00:00]} Nf6 {[%emt 0:00:13]} 2. c4 {[%emt 0:00:00]} e6 {[%emt 0:01:42]} 3. Nf3 {[%emt 0:00:11]} b6 {[%emt 0:01:57]} 4. g3 {[%emt 0:00:14]} Bb7 {[%emt 0:03:22]} 5. Bg2 {[%emt 0:00:22]} Be7 {[%emt 0:00:12]} 6. O-O {[%emt 0:08:00]} O-O {[%emt 0:01:19]} 7. Nc3 {[%emt 0:02:20]} Ne4 {[%emt 0:02:37]} 8. Bd2 {[%emt 0:00:19]} d6 {[%emt 0:09:07]} 9. d5 {[%emt 0:02:36]} Nxd2 {[%emt 0:06:12]} 10. Qxd2 {[%emt 0:04:51]} e5 {[%emt 0:01:49]} 11. e4 {[%emt 0:02:18]} Nd7 {[%emt 0:00:57]} 12. b4 {[%emt 0:07:05]} g6 {[%emt 0:02:19]} 13. Ne1 {[%emt 0:01:06]} Bg5 {[%emt 0:00:31]} 14. Qe2 {[%emt 0:04:13]} Bh6 {[%emt 0:07:16]} 15. Nd3 {[%emt 0:04:32]} Qe7 {[%emt 0:02:53]} 16. Rae1 {[%emt 0:09:40]} f5 {[%emt 0:10:33]} 17. c5 {[%emt 0:08:04]} bxc5 {[%emt 0:00:25]} 18. bxc5 {[%emt 0:00:07]} Ba6 {[%emt 0:00:03]} 19. cxd6 {[%emt 0:02:34]} cxd6 {[%emt 0:00:05]} 20. Qc2 {[%emt 0:04:10]} Rac8 {[%emt 0:01:35]} 21. Rb1 {[%emt 0:11:46]} Nc5 {[%emt 0:07:36]} 22. Nb4 {[%emt 0:05:56]} Bxf1 {[%emt 0:00:49]} 23. Kxf1 {[%emt 0:02:58]} fxe4 {[%emt 0:01:11]} 24. Nc6 {[%emt 0:00:27]} Qf6 {[%emt 0:05:16]} 25. Nxe4 {[%emt 0:00:56]} Nxe4 {[%emt 0:00:19]} 26. Bxe4 {[%emt 0:00:05]} Rc7 {[%emt 0:00:11]} 27. a4 {[%emt 0:08:48]} Be3 {[%emt 0:00:23]} 28. f3 {[%emt 0:00:26]} g5 {[%emt 0:06:44]} 29. h3 {[%emt 0:07:46]} h5 {[%emt 0:04:14]} 30. Kg2 {[%emt 0:00:09]} Kg7 {[%emt 0:01:33]} 31. Qe2 {[%emt 0:01:30]} Bc5 {[%emt 0:00:15]} 32. a5 {[%emt 0:00:27]} g4 {[%emt 0:04:40]} 33. hxg4 {[%emt 0:00:23]} hxg4 {[%emt 0:00:09]} 34. Rf1 {[%emt 0:02:05]} gxf3+ {[%emt 0:03:39]} 35. Bxf3 {[%emt 0:00:01]} Rcf7 {[%emt 0:00:53]} 36. Qe4 {[%emt 0:00:48]} Qg6 37. Qxg6+ {[%emt 0:00:24]} Kxg6 {[%emt 0:01:37]} 38. Be4+ {[%emt 0:00:31]} Kg5 {[%emt 0:00:09]} 39. Rf3 {[%emt 0:00:38]} Kg4 {[%emt 0:00:58]} 40. Rxf7 {[%emt 0:00:18]} Rxf7 {[%emt 0:30:05]} 41. Nd8 {[%emt 0:30:54]} Rf2+ {[%emt 0:00:11]} 42. Kh1 {[%emt 0:00:05]} Kxg3 {[%emt 0:00:10]} 0-1

[Event "AUT-ch 2018"]
[Site "Vienna"]
[Date "2018.07.24"]
[Round "4"]
[White "Hapala, Elisabeth"]
[Black "Sadilek, Peter"]
[Result "0-1"]
[ECO "B00"]
[WhiteElo "2131"]
[BlackElo "2268"]
[Annotator "NA"]
[PlyCount "54"]
[EventDate "2018.07.22"]
[EventType "swiss"]
[EventCountry "AUT"]
[SourceTitle "playchess.com"]
[Source "ChessBase"]
[SourceQuality "1"]
[TimeControl "40/5400+30:1800+30"]

1. e4 {[%emt 0:00:00]} Nc6 {[%emt 0:01:03]} 2. Nf3 {[%emt 0:00:12]} d6 {[%emt 0:00:18]} 3. d4 {[%emt 0:01:01]} Nf6 {[%emt 0:01:57]} 4. Nc3 {[%emt 0:01:13]} g6 {[%emt 0:00:10]} 5. d5 {[%emt 0:08:23]} Nb8 {[%emt 0:00:20]} 6. Be3 {[%emt 0:03:03]} Bg7 {[%emt 0:03:23]} 7. Qd2 {[%emt 0:08:11]} O-O {[%emt 0:01:55]} 8. h3 {[%emt 0:02:23]} c6 {[%emt 0:12:18]} 9. O-O-O {[%emt 0:04:43]} b5 {[%emt 0:22:29]} 10. dxc6 {[%emt 0:08:46]} b4 {[%emt 0:00:23]} 11. Nd5 {[%emt 0:00:58]} Nxc6 {[%emt 0:00:15]} 12. Nxf6+ {[%emt 0:25:03]} Bxf6 {[%emt 0:00:03]} 13. Bc4 {[%emt 0:00:11]} Qc7 {[%emt 0:07:56]} 14. Bd5 {[%emt 0:05:31]} Rb8 {[%emt 0:10:09]} 15. Bg5 {[%emt 0:06:25]} Bh8 {[%emt 0:19:20]} 16. Bxc6 {[%emt 0:07:42]} Qxc6 {[%emt 0:00:11]} 17. Bxe7 {[%emt 0:00:04]} Qa6 {[%emt 0:05:07]} 18. Bxf8 {[%emt 0:03:51]} Bxb2+ {[%emt 0:05:15]} 19. Kxb2 {[%emt 0:00:43]} Qa3+ {[%emt 0:00:03]} 20. Kb1 {[%emt 0:08:26]} Be6 {[%emt 0:00:38]} 21. Qd5 {[%emt 0:01:31]} Bxd5 {[%emt 0:00:20]} 22. Rxd5 {[%emt 0:00:02]} Kxf8 {[%emt 0:02:57]} 23. Rhd1 {[%emt 0:00:35]} Rb6 {[%emt 0:01:14]} 24. e5 {[%emt 0:01:52]} Ra6 {[%emt 0:00:55]} 25. exd6 {[%emt 0:00:52]} Qxa2+ {[%emt 0:00:06]} 26. Kc1 {[%emt 0:00:02]} b3 {[%emt 0:00:43]} 27. Kd2 {[%emt 0:01:10]} bxc2 {[%emt 0:00:13]} 0-1

[Event "AUT-ch 2018"]
[Site "Vienna"]
[Date "2018.07.24"]
[Round "4"]
[White "Froewis, Annika"]
[Black "Schloffer, Jasmin-Denise"]
[Result "0-1"]
[ECO "C54"]
[WhiteElo "2128"]
[BlackElo "2102"]
[Annotator "NA"]
[PlyCount "116"]
[EventDate "2018.07.22"]
[EventType "swiss"]
[EventCountry "AUT"]
[SourceTitle "playchess.com"]
[Source "ChessBase"]
[SourceQuality "1"]
[TimeControl "40/5400+30:1800+30"]

1. e4 {[%emt 0:00:00]} e5 {[%emt 0:00:05]} 2. Nf3 {[%emt 0:00:00]} Nc6 {[%emt 0:00:06]} 3. Bc4 {[%emt 0:00:00]} Bc5 {[%emt 0:00:07]} 4. c3 {[%emt 0:00:00]} Nf6 {[%emt 0:00:06]} 5. d4 {[%emt 0:00:10]} exd4 {[%emt 0:00:10]} 6. e5 {[%emt 0:00:14]} d5 {[%emt 0:01:40]} 7. Be2 {[%emt 0:00:18]} Ne4 {[%emt 0:00:43]} 8. cxd4 {[%emt 0:00:17]} Bb4+ {[%emt 0:03:25]} 9. Bd2 {[%emt 0:00:16]} Nxd2 {[%emt 0:02:07]} 10. Nbxd2 {[%emt 0:00:13]} O-O {[%emt 0:00:18]} 11. O-O {[%emt 0:00:23]} f6 {[%emt 0:04:36]} 12. Rc1 {[%emt 0:05:37]} Kh8 {[%emt 0:06:44]} 13. a3 {[%emt 0:04:23]} Bxd2 {[%emt 0:01:26]} 14. Qxd2 {[%emt 0:00:23]} Bg4 {[%emt 0:04:08]} 15. Rcd1 {[%emt 0:18:19]} Qe7 {[%emt 0:09:06]} 16. exf6 {[%emt 0:03:48]} Qxf6 {[%emt 0:01:16]} 17. Ne5 {[%emt 0:05:19]} Bxe2 {[%emt 0:01:57]} 18. Qxe2 {[%emt 0:00:17]} Nxe5 {[%emt 0:02:32]} 19. dxe5 {[%emt 0:03:26]} Qe6 {[%emt 0:00:31]} 20. f4 {[%emt 0:00:53]} c6 {[%emt 0:01:25]} 21. Rd3 {[%emt 0:13:05]} Rae8 {[%emt 0:04:10]} 22. Rh3 {[%emt 0:04:11]} Rf7 {[%emt 0:09:43]} 23. Qf2 {[%emt 0:09:13]} b6 {[%emt 0:02:51]} 24. Qh4 {[%emt 0:00:21]} g6 {[%emt 0:00:25]} 25. g4 {[%emt 0:03:56]} c5 {[%emt 0:02:21]} 26. Qg5 {[%emt 0:04:17]} Rg8 {[%emt 0:07:07]} 27. Rhf3 {[%emt 0:09:06]} d4 {[%emt 0:03:13]} 28. h3 {[%emt 0:08:18]} b5 {[%emt 0:08:22]} 29. Qh4 {[%emt 0:00:32]} c4 {[%emt 0:01:33]} 30. Qf2 {[%emt 0:01:01]} d3 {[%emt 0:04:23]} 31. Qe3 {[%emt 0:01:01]} Re8 {[%emt 0:01:56]} 32. Re1 {[%emt 0:01:07]} a6 {[%emt 0:01:32]} 33. Rf2 {[%emt 0:00:57]} Ref8 {[%emt 0:05:03]} 34. Qd4 {[%emt 0:00:55]} Rd7 {[%emt 0:01:11]} 35. Qc3 {[%emt 0:00:33]} Rdf7 {[%emt 0:01:34]} 36. Qd4 {[%emt 0:00:22]} h6 {[%emt 0:02:51]} 37. Kh2 {[%emt 0:00:45]} Rd7 {[%emt 0:03:18]} 38. Qc3 {[%emt 0:02:06]} Kh7 {[%emt 0:01:26]} 39. Qd2 {[%emt 0:01:05]} Re7 {[%emt 0:03:20]} 40. Qe3 {[%emt 0:02:05]} Ref7 {[%emt 0:31:11]} 41. Rg1 {[%emt 0:03:31]} Re7 {[%emt 0:00:00]} 42. Re1 {[%emt 0:03:23]} Rfe8 {[%emt 0:00:00]} 43. Qg3 {[%emt 0:02:32]} Qd5 {[%emt 0:00:00]} 44. h4 {[%emt 0:05:50]} Kg7 {[%emt 0:00:00]} 45. Qf3 {[%emt 0:07:05]} Qxf3 {[%emt 0:00:00]} 46. Rxf3 {[%emt 0:00:03]} g5 {[%emt 0:00:00]} 47. hxg5 {[%emt 0:04:36]} hxg5 {[%emt 0:00:00]} 48. Kg3 {[%emt 0:00:58]} gxf4+ {[%emt 0:00:00]} 49. Kxf4 {[%emt 0:00:15]} Rf7+ {[%emt 0:00:00]} 50. Kg3 {[%emt 0:01:30]} Rxf3+ {[%emt 0:00:00]} 51. Kxf3 {[%emt 0:00:02]} Kg6 {[%emt 0:00:00]} 52. Ke4 {[%emt 0:00:47]} Rd8 {[%emt 0:00:00]} 53. Rd1 {[%emt 0:01:17]} Kg5 {[%emt 0:00:00]} 54. b3 {[%emt 0:01:10]} d2 {[%emt 0:00:00]} 55. bxc4 {[%emt 0:00:35]} bxc4 {[%emt 0:00:00]} 56. e6 {[%emt 0:00:40]} Kf6 {[%emt 0:00:00]} 57. g5+ {[%emt 0:03:26]} Kxe6 {[%emt 0:00:00]} 58. Ke3 {[%emt 0:01:02]} c3 {[%emt 0:00:00] Kd4 Ke5+} 0-1

[Event "AUT-ch 2018"]
[Site "Vienna"]
[Date "2018.07.24"]
[Round "4"]
[White "Toelly, Michael"]
[Black "Gutmann, Alois"]
[Result "1-0"]
[ECO "A87"]
[WhiteElo "2127"]
[BlackElo "2062"]
[Annotator "NA"]
[PlyCount "59"]
[EventDate "2018.07.22"]
[EventType "swiss"]
[EventCountry "AUT"]
[SourceTitle "playchess.com"]
[Source "ChessBase"]
[SourceQuality "1"]
[TimeControl "40/5400+30:1800+30"]

1. c4 {[%emt 0:00:00]} f5 {[%emt 0:00:47]} 2. d4 {[%emt 0:00:00]} Nf6 {[%emt 0:00:30]} 3. g3 {[%emt 0:00:07]} g6 {[%emt 0:00:38]} 4. Bg2 {[%emt 0:00:03]} Bg7 {[%emt 0:00:07]} 5. Nf3 {[%emt 0:00:17]} d6 {[%emt 0:01:24]} 6. Nc3 {[%emt 0:00:17]} O-O {[%emt 0:01:13]} 7. O-O {[%emt 0:00:04]} Qe8 {[%emt 0:05:11]} 8. d5 {[%emt 0:08:15]} e5 {[%emt 0:10:02]} 9. dxe6 {[%emt 0:00:34]} Bxe6 {[%emt 0:02:01]} 10. Nd4 {[%emt 0:03:26]} Bc8 {[%emt 0:02:18]} 11. Bf4 {[%emt 0:20:43]} Na6 {[%emt 0:02:57]} 12. Ndb5 {[%emt 0:01:59]} Kh8 {[%emt 0:02:37]} 13. c5 {[%emt 0:05:20]} g5 {[%emt 0:22:58]} 14. Bxg5 {[%emt 0:02:26]} dxc5 {[%emt 0:00:06]} 15. Qd2 {[%emt 0:09:50]} Ne4 {[%emt 0:07:30]} 16. Nxe4 {[%emt 0:06:30]} Qxb5 {[%emt 0:01:35]} 17. Be7 {[%emt 0:02:02]} fxe4 {[%emt 0:14:04]} 18. Bxf8 {[%emt 0:00:07]} Bxf8 {[%emt 0:00:29]} 19. Qd8 {[%emt 0:00:16]} Kg7 {[%emt 0:05:55]} 20. Qg5+ {[%emt 0:06:21]} Kf7 {[%emt 0:00:23]} 21. Bxe4 {[%emt 0:00:07]} Be6 {[%emt 0:02:44]} 22. Bxh7 {[%emt 0:00:54]} Ke8 {[%emt 0:02:51]} 23. Rad1 {[%emt 0:03:56]} Bd6 {[%emt 0:01:52]} 24. Qg7 {[%emt 0:01:08]} Rb8 {[%emt 0:00:37]} 25. e4 {[%emt 0:00:54]} Bf7 {[%emt 0:02:38]} 26. Rfe1 {[%emt 0:02:14]} c4 {[%emt 0:01:21]} 27. e5 {[%emt 0:03:01]} Bf8 {[%emt 0:00:04]} 28. Qg4 {[%emt 0:00:18]} Nb4 {[%emt 0:02:48]} 29. e6 {[%emt 0:00:50]} Bh5 {[%emt 0:00:05]} 30. Bg6+ {[%emt 0:00:21]} 1-0

[Event "AUT-ch 2018"]
[Site "Vienna"]
[Date "2018.07.24"]
[Round "4"]
[White "Hupfer, Robert"]
[Black "Niedersberger, Andreas"]
[Result "1/2-1/2"]
[ECO "D47"]
[WhiteElo "2122"]
[BlackElo "2058"]
[Annotator "NA"]
[PlyCount "63"]
[EventDate "2018.07.22"]
[EventType "swiss"]
[EventCountry "AUT"]
[SourceTitle "playchess.com"]
[Source "ChessBase"]
[SourceQuality "1"]
[TimeControl "40/5400+30:1800+30"]

1. d4 {[%emt 0:00:00]} d5 {[%emt 0:00:30]} 2. c4 {[%emt 0:00:30]} c6 {[%emt 0:00:30]} 3. e3 {[%emt 0:00:30]} Nf6 {[%emt 0:00:30]} 4. Nc3 {[%emt 0:00:00]} e6 {[%emt 0:00:00]} 5. Nf3 {[%emt 0:00:00]} Nbd7 {[%emt 0:00:00]} 6. Bd3 {[%emt 0:00:08]} dxc4 {[%emt 0:00:00]} 7. Bxc4 {[%emt 0:00:03]} b5 {[%emt 0:00:00]} 8. Bd3 {[%emt 0:00:03]} Bb7 {[%emt 0:00:00]} 9. O-O {[%emt 0:00:15]} b4 {[%emt 0:00:00]} 10. Ne4 {[%emt 0:04:13]} c5 {[%emt 0:02:42]} 11. Nxf6+ {[%emt 0:13:17]} Qxf6 {[%emt 0:01:09]} 12. Ne5 {[%emt 0:06:17]} cxd4 {[%emt 0:11:43]} 13. Nxd7 {[%emt 0:09:11]} Kxd7 {[%emt 0:00:04]} 14. Qa4+ {[%emt 0:05:48]} Bc6 {[%emt 0:02:33]} 15. Bb5 {[%emt 0:00:12]} e5 {[%emt 0:00:39]} 16. exd4 {[%emt 0:03:40]} exd4 {[%emt 0:01:05]} 17. Rd1 {[%emt 0:04:48]} Bc5 {[%emt 0:04:20]} 18. Be3 {[%emt 0:12:16]} Qg6 {[%emt 0:28:21]} 19. Bxc6+ {[%emt 0:05:56]} Qxc6 {[%emt 0:00:12]} 20. Qb3 {[%emt 0:05:32]} Ke7 {[%emt 0:03:19]} 21. Bxd4 {[%emt 0:01:55]} Bxd4 {[%emt 0:05:25]} 22. Rxd4 {[%emt 0:00:05]} a5 {[%emt 0:02:19]} 23. Re1+ {[%emt 0:08:30]} Kf8 {[%emt 0:00:11]} 24. Qd3 {[%emt 0:04:07]} g6 {[%emt 0:03:37]} 25. Rd6 {[%emt 0:02:52]} Qc5 26. Rd5 Qb6 {[%emt 0:02:04]} 27. Rb5 {[%emt 0:03:40]} Qf6 {[%emt 0:03:25]} 28. Qd5 Kg7 {[%emt 0:01:55]} 29. g3 {[%emt 0:08:23]} Rhd8 {[%emt 0:01:43]} 30. Qe5 {[%emt 0:00:52]} Qxe5 {[%emt 0:00:42]} 31. Rexe5 Rd2 32. Rxa5 1/2-1/2

[Event "AUT-ch 2018"]
[Site "Vienna"]
[Date "2018.07.24"]
[Round "4"]
[White "Zojer, Stefan"]
[Black "Newrkla, Katharina"]
[Result "0-1"]
[ECO "A46"]
[WhiteElo "2108"]
[BlackElo "2175"]
[Annotator "NA"]
[PlyCount "76"]
[EventDate "2018.07.22"]
[EventType "swiss"]
[EventCountry "AUT"]
[SourceTitle "playchess.com"]
[Source "ChessBase"]
[SourceQuality "1"]
[TimeControl "40/5400+30:1800+30"]

1. d4 {[%emt 0:00:00]} Nf6 {[%emt 0:00:06]} 2. Nf3 {[%emt 0:00:00]} c5 {[%emt 0:00:18]} 3. e3 {[%emt 0:00:05]} g6 {[%emt 0:00:22]} 4. dxc5 {[%emt 0:01:43]} Qa5+ {[%emt 0:00:36]} 5. Nbd2 {[%emt 0:00:18]} Bg7 {[%emt 0:05:26]} 6. a3 {[%emt 0:03:12]} Qxc5 {[%emt 0:00:56]} 7. c4 {[%emt 0:00:42]} Qc7 {[%emt 0:02:42]} 8. Be2 {[%emt 0:02:23]} d6 {[%emt 0:03:19]} 9. O-O {[%emt 0:00:18]} O-O {[%emt 0:00:47]} 10. Nd4 {[%emt 0:02:28]} a6 {[%emt 0:06:41]} 11. b4 {[%emt 0:05:42]} Nc6 {[%emt 0:03:44]} 12. Bb2 {[%emt 0:02:36]} Bd7 {[%emt 0:04:52]} 13. Rc1 {[%emt 0:05:04]} Rfc8 {[%emt 0:13:04]} 14. Nb1 {[%emt 0:13:40]} Qd8 {[%emt 0:03:35]} 15. Nc3 {[%emt 0:04:13]} h5 {[%emt 0:11:00]} 16. Qb3 {[%emt 0:04:48]} Bg4 {[%emt 0:05:07]} 17. Nf3 {[%emt 0:06:47]} e5 {[%emt 0:17:21]} 18. h3 {[%emt 0:06:06]} Bf5 {[%emt 0:00:33]} 19. Rfd1 {[%emt 0:05:46]} Qe7 {[%emt 0:01:07]} 20. Na4 {[%emt 0:03:50]} Nd7 {[%emt 0:02:16]} 21. Rd2 {[%emt 0:05:07]} e4 {[%emt 0:02:13]} 22. Nd4 {[%emt 0:03:45]} Nxd4 {[%emt 0:00:27]} 23. Bxd4 {[%emt 0:00:37]} b5 {[%emt 0:05:14]} 24. Nc3 {[%emt 0:04:47]} bxc4 {[%emt 0:00:06]} 25. Bxc4 {[%emt 0:01:00]} Bxd4 {[%emt 0:01:33]} 26. Rxd4 {[%emt 0:01:30]} Ne5 {[%emt 0:01:54]} 27. Rcd1 {[%emt 0:03:36]} Qg5 {[%emt 0:05:24]} 28. Nxe4 {[%emt 0:02:39]} Nf3+ {[%emt 0:00:56]} 29. Kh1 {[%emt 0:02:19]} Nxd4 {[%emt 0:00:13]} 30. Bxf7+ {[%emt 0:01:46]} Kg7 {[%emt 0:00:33]} 31. Qd5 {[%emt 0:01:52]} Qe7 {[%emt 0:01:17]} 32. Qxd4+ {[%emt 0:01:26]} Kxf7 {[%emt 0:00:24]} 33. Nxd6+ {[%emt 0:00:07]} Kg8 {[%emt 0:00:16]} 34. g4 {[%emt 0:00:51]} hxg4 {[%emt 0:01:35]} 35. hxg4 {[%emt 0:00:10]} Qh4+ {[%emt 0:00:41]} 36. Kg2 {[%emt 0:00:42]} Qxg4+ {[%emt 0:00:22]} 37. Qxg4 {[%emt 0:01:44]} Bxg4 {[%emt 0:00:04]} 38. Rd4 {[%emt 0:01:20]} Rd8 {[%emt 0:00:31]} 0-1

[Event "AUT-ch 2018"]
[Site "Vienna"]
[Date "2018.07.24"]
[Round "4"]
[White "Pacher, Simon"]
[Black "Gerhold, Michael"]
[Result "1/2-1/2"]
[ECO "B40"]
[WhiteElo "2097"]
[BlackElo "2254"]
[Annotator "NA"]
[PlyCount "78"]
[EventDate "2018.07.22"]
[EventType "swiss"]
[EventCountry "AUT"]
[SourceTitle "playchess.com"]
[Source "ChessBase"]
[SourceQuality "1"]
[TimeControl "40/5400+30:1800+30"]

1. e4 {[%emt 0:00:00]} c5 {[%emt 0:00:02]} 2. Nf3 {[%emt 0:00:26]} e6 {[%emt 0:00:17]} 3. c3 {[%emt 0:00:32]} d5 {[%emt 0:00:06]} 4. exd5 {[%emt 0:00:11]} exd5 {[%emt 0:00:05]} 5. d4 {[%emt 0:01:45]} Nc6 {[%emt 0:00:55]} 6. Be2 {[%emt 0:03:50]} Nf6 {[%emt 0:00:10]} 7. Bg5 {[%emt 0:01:09]} cxd4 {[%emt 0:04:12]} 8. Nxd4 {[%emt 0:02:20]} Bc5 {[%emt 0:02:40]} 9. O-O {[%emt 0:01:06]} O-O {[%emt 0:00:16]} 10. Nb3 {[%emt 0:01:38]} Bb6 {[%emt 0:05:11]} 11. Bxf6 {[%emt 0:13:38]} Qxf6 {[%emt 0:02:55]} 12. Qxd5 {[%emt 0:00:27]} Re8 {[%emt 0:00:45]} 13. Qf3 {[%emt 0:03:45]} Qh6 {[%emt 0:03:01]} 14. N1d2 {[%emt 0:02:00]} Ne5 {[%emt 0:05:53]} 15. Qh5 {[%emt 0:04:10]} Qf6 {[%emt 0:23:16]} 16. Ne4 {[%emt 0:09:05]} Qc6 {[%emt 0:03:38]} 17. Nbd2 {[%emt 0:03:47]} Bd7 {[%emt 0:11:12]} 18. Kh1 {[%emt 0:04:07]} f5 {[%emt 0:07:56]} 19. f4 {[%emt 0:08:22]} fxe4 {[%emt 0:06:43]} 20. fxe5 {[%emt 0:01:13]} g6 {[%emt 0:02:44]} 21. Qg5 {[%emt 0:03:44]} Bc7 {[%emt 0:00:25]} 22. Rf6 {[%emt 0:04:16]} Bd8 {[%emt 0:00:12]} 23. Raf1 {[%emt 0:01:40]} Bxf6 {[%emt 0:00:52]} 24. Rxf6 {[%emt 0:02:14]} Be6 {[%emt 0:04:23]} 25. Bc4 {[%emt 0:06:49]} Qd7 {[%emt 0:04:19]} 26. Nxe4 {[%emt 0:03:23]} Bxc4 {[%emt 0:02:53]} 27. Rxg6+ {[%emt 0:00:11]} hxg6 {[%emt 0:00:11]} 28. Nf6+ {[%emt 0:00:09]} Kg7 {[%emt 0:00:12]} 29. Nxd7 {[%emt 0:00:09]} Rad8 {[%emt 0:00:23]} 30. Qf6+ {[%emt 0:03:20]} Kh6 {[%emt 0:00:50]} 31. Qh4+ {[%emt 0:00:37]} Kg7 {[%emt 0:00:06]} 32. Qf6+ {[%emt 0:00:11]} Kh6 {[%emt 0:00:05]} 33. Qh4+ {[%emt 0:03:50]} Kg7 {[%emt 0:00:05]} 34. Qxc4 {[%emt 0:00:06]} Rxd7 {[%emt 0:00:03]} 35. Qg4 {[%emt 0:01:09]} Rd5 {[%emt 0:02:27]} 36. h3 {[%emt 0:01:20]} Rexe5 {[%emt 0:00:09]} 37. Qb4 {[%emt 0:01:39]} b6 {[%emt 0:01:27]} 38. c4 {[%emt 0:01:13]} Rd1+ {[%emt 0:01:54]} 39. Kh2 {[%emt 0:00:08]} Re2 {[%emt 0:01:30]} 1/2-1/2